[Event "Nordic Youth-ch A 2019"]
[Site "Borgarnes"]
[Date "2019.02.15"]
[Round "1.1"]
[White "Keinanen, Toivo"]
[Black "Fossan, Andreas"]
[Result "1-0"]
[ECO "A40"]
[WhiteElo "2403"]
[BlackElo "2025"]
[Annotator "NA RC"]
[PlyCount "107"]
[EventDate "2019.02.03"]
[EventType "swiss"]
[EventCountry "ISL"]
[SourceTitle "playchess.com"]
[Source "ChessBase"]
[SourceQuality "1"]
[TimeControl "40/5400+30:1800+30"]

1. d4 {[%emt 0:00:00]} Nf6 {[%emt 0:00:09]} 2. c4 {[%emt 0:00:00]} e6 {[%emt 0:00:19]} 3. g3 {[%emt 0:01:57]} Bb4+ {[%emt 0:02:26]} 4. Bd2 {[%emt 0:00:25]} Qe7 {[%emt 0:01:39]} 5. Bg2 {[%emt 0:00:23]} Nc6 {[%emt 0:01:50]} 6. Nf3 {[%emt 0:00:08]} Bxd2+ {[%emt 0:00:36]} 7. Nbxd2 {[%emt 0:00:06]} a5 {[%emt 0:01:29]} 8. O-O {[%emt 0:00:56]} d6 {[%emt 0:01:12]} 9. e4 {[%emt 0:00:06]} e5 {[%emt 0:03:51]} 10. d5 {[%emt 0:00:02]} Nb8 {[%emt 0:00:38]} 11. Qa4+ {[%emt 0:00:01] E11: Bogo-Indian} (11. Ne1 O-O 12. Nd3 Bg4 13. Qc2 Be2 14. Rfe1 Bxd3 15. Qxd3 c6 16. h3 Nbd7 17. b3 cxd5 18. exd5 Qd8 19. g4 h6 20. Qe3 Qb6 {1-0 (120) Li,C (2720)-Henriquez Villagra,C (2517) Doha 2016}) 11... Nbd7 {[%emt 0:11:21]} 12. a3 {[%emt 0:00:12]} O-O {[%emt 0:01:23]} 13. b4 {[%emt 0:00:02]} b6 {[%emt 0:08:28]} 14. Rfc1 $146 {[%emt 0:00:39]} ({Predecessor:} 14. Qb3 Bb7 15. Nh4 g6 16. Bh3 c6 17. Qe3 Rfe8 18. Rfc1 Qf8 19. Nb3 axb4 20. axb4 Rxa1 21. Rxa1 {0-1 (65) Mankeyev,R (2381)-Rogers,I (2547) Reykjavik 2006}) 14... Ba6 {[%emt 0:06:56]} 15. Ne1 {[%emt 0:04:34]} Rfb8 {[%emt 0:09:59]} 16. Qc2 {[%emt 0:03:46]} Bb7 {[%emt 0:05:41]} 17. Nd3 {[%emt 0:00:34]} c5 {[%emt 0:02:38]} 18. dxc6 {[%emt 0:17:50]} Bxc6 {[%emt 0:00:09]} 19. Qb2 {[%emt 0:03:23]} h5 {[%emt 0:05:26]} 20. Ne1 {[%emt 0:02:39]} h4 {[%emt 0:03:00]} 21. Nc2 {[%emt 0:01:13]} hxg3 {[%emt 0:02:01]} 22. hxg3 {[%emt 0:00:36]} Nf8 {[%emt 0:08:01]} 23. Ne3 {[%emt 0:03:02]} Ne6 {[%emt 0:00:55]} 24. Nd5 {[%emt 0:15:26]} Bxd5 {[%emt 0:02:17]} 25. cxd5 {[%emt 0:00:27]} Nd4 {[%emt 0:00:35]} 26. Nf3 {[%emt 0:02:49]} Nxf3+ {[%emt 0:03:25]} 27. Bxf3 {[%emt 0:00:07]} Nh7 {[%emt 0:03:15]} 28. Rc6 {[%emt 0:06:13]} Ng5 {[%emt 0:00:37]} 29. Bg2 {[%emt 0:00:03]} Qf6 {[%emt 0:00:38]} 30. Re1 {[%emt 0:02:36]} b5 {[%emt 0:07:16]} 31. Re3 {[%emt 0:16:37]} g6 {[%emt 0:03:06]} 32. bxa5 {[%emt 0:14:22]} Rxa5 {[%emt 0:00:22]} 33. Rb3 {[%emt 0:00:17]} Rba8 {[%emt 0:00:53]} 34. Rcc3 {[%emt 0:01:40]} Rb8 {[%emt 0:02:27]} 35. Rb4 {[%emt 0:00:23]} Kg7 {[%emt 0:01:03]} 36. Qb3 {[%emt 0:03:37]} Rh8 {[%emt 0:01:26]} (36... Qd8 $11) 37. Rxb5 {[%emt 0:00:27]} Rxb5 $11 {[%emt 0:00:03]} 38. Qxb5 {[%emt 0:00:01]} Nh3+ {[%emt 0:00:31]} 39. Bxh3 {[%emt 0:00:13]} Rxh3 {[%emt 0:00:01]} 40. Kg2 {[%emt 0:00:42]} Rh8 {[%emt 0:01:09]} 41. Qd3 {[%emt 0:31:21]} Qg5 {[%emt 0:30:21]} 42. Qf3 {[%emt 0:00:15]} Qh6 43. Kf1 Rb8 {[%emt 0:01:21]} 44. Rc2 {[%emt 0:00:48]} Ra8 {[%emt 0:00:33]} 45. Rc7 {[%emt 0:00:13]} Rf8 {[%emt 0:00:32]} 46. Kg2 {[%emt 0:00:25]} Qd2 {[%emt 0:00:27]} 47. Rd7 {[%emt 0:00:09]} Kg8 {[%emt 0:00:34]} 48. Rxd6 {[%emt 0:00:18]} Rc8 {[%emt 0:00:27]} 49. Rd7 {[%emt 0:00:14]} f5 {[%emt 0:00:32]} 50. exf5 {[%emt 0:01:04]} Rc3 {[%emt 0:00:29]} 51. Qg4 {[%emt 0:00:15]} g5 {[%emt 0:00:26]} 52. f6 {[%emt 0:00:27]} Rc2 {[%emt 0:00:33]} 53. Qe6+ {[%emt 0:00:21]} Kh8 {[%emt 0:00:07]} 54. Qe8# 1-0

[Event "Nordic Youth-ch A 2019"]
[Site "Borgarnes"]
[Date "2019.02.15"]
[Round "1.5"]
[White "Tryggestad, Andreas Garberg"]
[Black "Holm, Filip"]
[Result "1-0"]
[ECO "E70"]
[WhiteElo "2351"]
[BlackElo "1960"]
[Annotator "NA"]
[PlyCount "61"]
[EventDate "2019.02.03"]
[EventType "swiss"]
[EventCountry "ISL"]
[SourceTitle "playchess.com"]
[Source "ChessBase"]
[SourceQuality "1"]
[TimeControl "40/5400+30:1800+30"]

1. d4 {[%emt 0:00:00]} Nf6 {[%emt 0:00:00]} 2. c4 {[%emt 0:00:00]} g6 {[%emt 0:00:00]} 3. Nc3 {[%emt 0:00:00]} Bg7 {[%emt 0:00:00]} 4. e4 {[%emt 0:00:00]} d6 {[%emt 0:00:04]} 5. Bd3 {[%emt 0:00:06]} O-O {[%emt 0:00:14]} 6. Nge2 {[%emt 0:00:05]} e5 {[%emt 0:01:34]} 7. d5 {[%emt 0:00:13]} Na6 {[%emt 0:00:31]} 8. a3 {[%emt 0:01:00]} Nc5 {[%emt 0:01:40]} 9. Bc2 {[%emt 0:00:10]} a5 {[%emt 0:02:09]} 10. f3 {[%emt 0:04:36]} h5 {[%emt 0:08:48]} 11. Bg5 {[%emt 0:01:15]} Bd7 {[%emt 0:00:34]} 12. b4 {[%emt 0:00:30]} axb4 {[%emt 0:00:14]} 13. axb4 {[%emt 0:00:02]} Rxa1 {[%emt 0:01:59]} 14. Qxa1 {[%emt 0:00:02]} Na6 {[%emt 0:00:08]} 15. Qb2 {[%emt 0:01:29]} Qc8 {[%emt 0:03:00]} 16. Be3 {[%emt 0:02:10]} b6 {[%emt 0:06:14]} 17. O-O {[%emt 0:00:48]} Nh7 {[%emt 0:02:39]} 18. Ra1 {[%emt 0:00:17]} c5 {[%emt 0:08:44]} 19. dxc6 {[%emt 0:00:13]} Be6 {[%emt 0:03:34]} 20. Nd5 {[%emt 0:00:57]} Bxd5 {[%emt 0:05:06]} 21. cxd5 {[%emt 0:00:07]} f5 {[%emt 0:00:38]} 22. Bxb6 {[%emt 0:00:25]} fxe4 {[%emt 0:01:18]} 23. Bxe4 {[%emt 0:00:31]} Ng5 {[%emt 0:00:11]} 24. b5 {[%emt 0:00:48]} Nxe4 {[%emt 0:07:33]} 25. fxe4 {[%emt 0:01:01]} Nc5 {[%emt 0:00:45]} 26. Bxc5 {[%emt 0:01:26]} dxc5 {[%emt 0:00:39]} 27. b6 {[%emt 0:00:27]} Bh6 {[%emt 0:01:43]} 28. b7 {[%emt 0:00:37]} Qc7 {[%emt 0:01:58]} 29. h3 {[%emt 0:04:25]} Be3+ {[%emt 0:01:23]} 30. Kh1 {[%emt 0:00:03]} g5 {[%emt 0:01:04]} 31. Qb3 {[%emt 0:00:15]} 1-0

[Event "Nordic Youth-ch A 2019"]
[Site "Borgarnes"]
[Date "2019.02.15"]
[Round "1.10"]
[White "Szczepanowski, Tomasz"]
[Black "Liu, Casper"]
[Result "0-1"]
[ECO "A40"]
[WhiteElo "1882"]
[BlackElo "2126"]
[Annotator "NA"]
[PlyCount "42"]
[EventDate "2019.02.03"]
[EventType "swiss"]
[EventCountry "ISL"]
[SourceTitle "playchess.com"]
[Source "ChessBase"]
[SourceQuality "1"]
[TimeControl "40/5400+30:1800+30"]

1. d4 {[%emt 0:00:14]} Nc6 {[%emt 0:00:28]} 2. c4 {[%emt 0:01:49]} e5 {[%emt 0:00:07]} 3. e3 {[%emt 0:00:51]} exd4 {[%emt 0:01:14]} 4. exd4 {[%emt 0:00:27]} d5 {[%emt 0:01:16]} 5. Nf3 {[%emt 0:01:14]} Bg4 {[%emt 0:04:28]} 6. Be3 {[%emt 0:02:13]} Nf6 {[%emt 0:01:45]} 7. Nc3 {[%emt 0:02:25]} Be7 {[%emt 0:11:42]} 8. Rc1 {[%emt 0:04:33]} O-O {[%emt 0:02:03]} 9. cxd5 {[%emt 0:03:27]} Nxd5 {[%emt 0:00:08]} 10. Bd3 {[%emt 0:13:44]} Nxe3 11. fxe3 {[%emt 0:00:21]} Bh4+ {[%emt 0:03:28]} 12. g3 {[%emt 0:01:00]} Bg5 {[%emt 0:00:06]} 13. Kf2 {[%emt 0:03:38]} Re8 {[%emt 0:03:30]} 14. Re1 {[%emt 0:00:28]} Bxf3 {[%emt 0:09:58]} 15. Qxf3 {[%emt 0:02:45]} Nxd4 {[%emt 0:00:48]} 16. exd4 {[%emt 0:01:39]} Qxd4+ {[%emt 0:00:14]} 17. Kg2 {[%emt 0:00:09]} Bxc1 {[%emt 0:00:10]} 18. Rxc1 {[%emt 0:00:03]} Re3 {[%emt 0:00:11]} 19. Qxb7 {[%emt 0:00:08]} Rae8 {[%emt 0:00:21]} 20. Rd1 {[%emt 0:00:35]} Rxd3 {[%emt 0:00:13]} 21. Qb5 {[%emt 0:00:58]} Rd2+ {[%emt 0:00:46]} 0-1

[Event "Nordic Youth-ch A 2019"]
[Site "Borgarnes"]
[Date "2019.02.15"]
[Round "1.11"]
[White "Fuglestein, Sander"]
[Black "Ehrenreich, Simon"]
[Result "1-0"]
[ECO "A40"]
[WhiteElo "2024"]
[BlackElo "1756"]
[Annotator "NA RC"]
[PlyCount "81"]
[EventDate "2019.02.03"]
[EventType "swiss"]
[EventCountry "ISL"]
[SourceTitle "playchess.com"]
[Source "ChessBase"]
[SourceQuality "1"]
[TimeControl "40/5400+30:1800+30"]

1. d4 {[%emt 0:00:00]} g6 {[%emt 0:00:00]} 2. c4 {[%emt 0:00:23]} Bg7 {[%emt 0:00:04]} 3. Nf3 {[%emt 0:00:32]} d6 {[%emt 0:00:40]} 4. g3 {[%emt 0:00:15]} Nd7 {[%emt 0:03:37]} 5. Bg2 {[%emt 0:01:09]} c5 {[%emt 0:00:31]} (5... e5 6. O-O exd4 7. Nxd4 Ne7 8. Nc3 O-O 9. e4 Nc6 10. Be3 Nde5 11. Nxc6 bxc6 12. b3 Nxc4 13. bxc4 Bxc3 14. Rc1 Bg7 15. c5 Bb7 16. Qa4 a5 17. Rfd1 Qe7 18. Rb1 {½-½ (30) Erdos,V (2605)-Mamedov,R (2703) Skopje 2018}) 6. Nc3 {[%emt 0:04:33] A41: 1 d4 d6: Tartakower System and Modern Defence} a6 {[%emt 0:07:08]} 7. O-O {[%emt 0:01:54]} Nh6 {[%emt 0:02:24]} 8. e4 $146 {[%emt 0:06:11]} ({Predecessor:} 8. d5 O-O 9. e4 f5 10. Re1 fxe4 11. Nxe4 Nf5 12. Neg5 Ne5 13. Nxe5 Bxe5 {1-0 (32) Strikovic,A (2506)-De La Pena Llerandi,A (1478) Pontevedra 2016}) 8... O-O {[%emt 0:09:35]} 9. Re1 {[%emt 0:17:58]} Re8 {[%emt 0:09:07]} 10. h3 {[%emt 0:04:11]} f5 {[%emt 0:11:34]} 11. Bxh6 {[%emt 0:10:12]} fxe4 {[%emt 0:04:11]} 12. Bxg7 {[%emt 0:08:27]} exf3 {[%emt 0:00:45]} 13. Bh6 {[%emt 0:00:42]} fxg2 {[%emt 0:01:15]} 14. Kxg2 {[%emt 0:00:49]} b6 {[%emt 0:06:36]} 15. Qf3 {[%emt 0:03:50]} Nf6 {[%emt 0:06:04]} 16. d5 {[%emt 0:03:44]} b5 {[%emt 0:05:30]} 17. b3 {[%emt 0:02:13]} e5 {[%emt 0:12:05]} 18. Bg5 {[%emt 0:08:34]} Rf8 {[%emt 0:07:00]} 19. g4 {[%emt 0:04:17]} h6 {[%emt 0:02:34]} 20. Bxh6 {[%emt 0:01:08]} Rf7 {[%emt 0:00:28]} 21. Bg5 {[%emt 0:01:02]} Qf8 {[%emt 0:00:14]} 22. Qg3 {[%emt 0:02:36]} b4 {[%emt 0:01:58]} (22... Bd7 $142 23. a3 Rb8) 23. Ne4 {[%emt 0:01:40]} Nxe4 {[%emt 0:00:45]} 24. Rxe4 {[%emt 0:00:02]} a5 {[%emt 0:00:36]} 25. Rd1 {[%emt 0:04:26]} a4 {[%emt 0:00:31]} 26. Rd3 {[%emt 0:00:47]} axb3 {[%emt 0:01:30]} 27. axb3 {[%emt 0:00:15]} Ra1 {[%emt 0:00:27]} 28. Ree3 {[%emt 0:03:17]} Ra2 {[%emt 0:04:57]} 29. Rf3 {[%emt 0:04:47]} Raa7 {[%emt 0:01:25]} 30. Rxf7 {[%emt 0:01:34]} Rxf7 {[%emt 0:00:23]} 31. Rf3 {[%emt 0:00:48]} Bb7 {[%emt 0:00:42]} 32. Rxf7 {[%emt 0:00:28]} Qxf7 33. Qf3 {[%emt 0:00:12]} (33. Qh4 $142) 33... Qxf3+ {[%emt 0:01:11]} 34. Kxf3 {[%emt 0:00:02]} Kf7 {[%emt 0:00:17]} 35. Ke4 {[%emt 0:00:01]} Bc8 {[%emt 0:00:18]} 36. f4 {[%emt 0:00:24]} exf4 $18 {[%emt 0:00:36]} 37. Kxf4 {[%emt 0:00:23]} Ba6 {[%emt 0:00:33]} 38. Kg3 {[%emt 0:02:47]} Kg7 {[%emt 0:00:25]} 39. Bc1 {[%emt 0:00:10]} Kf6 {[%emt 0:00:46]} 40. Bb2+ {[%emt 0:00:11]} Kg5 {[%emt 0:00:41]} 41. Bg7 {[%emt 0:30:13]} 1-0

[Event "Nordic Youth-ch A 2019"]
[Site "Borgarnes"]
[Date "2019.02.15"]
[Round "1.12"]
[White "Nielsen, Jon I Horni"]
[Black "Wartiovaara, Oliver"]
[Result "0-1"]
[ECO "B33"]
[WhiteElo "1756"]
[BlackElo "2021"]
[Annotator "NA RC"]
[PlyCount "58"]
[EventDate "2019.02.03"]
[EventType "swiss"]
[EventCountry "ISL"]
[SourceTitle "playchess.com"]
[Source "ChessBase"]
[SourceQuality "1"]
[TimeControl "40/5400+30:1800+30"]

1. e4 {[%emt 0:00:00]} c5 {[%emt 0:00:00]} 2. Nf3 {[%emt 0:00:19]} Nc6 {[%emt 0:00:03]} 3. d4 {[%emt 0:00:46]} cxd4 {[%emt 0:00:03]} 4. Nxd4 {[%emt 0:00:57]} Nf6 {[%emt 0:00:18]} 5. Nc3 {[%emt 0:01:09]} e5 {[%emt 0:00:12]} 6. Ndb5 {[%emt 0:01:11]} d6 {[%emt 0:00:08]} 7. Bg5 {[%emt 0:00:41]} a6 {[%emt 0:00:06]} 8. Na3 {[%emt 0:02:42]} b5 {[%emt 0:00:16]} 9. Nd5 {[%emt 0:02:09]} Be7 {[%emt 0:00:06]} 10. Bxf6 {[%emt 0:02:12]} Bxf6 {[%emt 0:00:06]} 11. c3 {[%emt 0:00:31]} Bg5 {[%emt 0:00:21]} 12. Be2 {[%emt 0:02:06]} O-O {[%emt 0:01:34]} 13. O-O {[%emt 0:03:38]} Be6 {[%emt 0:07:47]} 14. Nc2 {[%emt 0:03:27]} Ne7 {[%emt 0:02:09]} 15. Nce3 {[%emt 0:02:37]} Bxe3 {[%emt 0:13:51]} 16. Nxe3 {[%emt 0:02:56]} d5 {[%emt 0:02:14]} 17. exd5 {[%emt 0:01:07]} Nxd5 {[%emt 0:00:15]} 18. Bf3 {[%emt 0:01:08]} Nxe3 {[%emt 0:00:41]} 19. fxe3 {[%emt 0:00:14]} Rb8 {[%emt 0:10:47]} 20. Qc2 {[%emt 0:04:05]} f5 {[%emt 0:03:01]} 21. Rfe1 {[%emt 0:04:02]} e4 {[%emt 0:03:18]} 22. Be2 {[%emt 0:00:19]} Qg5 {[%emt 0:13:17]} 23. Bf1 {[%emt 0:04:20]} h5 {[%emt 0:10:26]} 24. a4 {[%emt 0:02:29]} Bc4 {[%emt 0:04:51]} 25. Bxc4+ {[%emt 0:02:24]} bxc4 {[%emt 0:00:06]} 26. Rad1 {[%emt 0:02:15]} Rb3 {[%emt 0:00:48]} 27. Rd4 {[%emt 0:01:21]} Rfb8 {[%emt 0:00:07]} 28. Rb1 {[%emt 0:03:24]} Qxe3+ {[%emt 0:00:13]} 29. Kh1 {[%emt 0:00:58]} Rxb2 {[%emt 0:00:19]} 0-1

[Event "Nordic Youth-ch A 2019"]
[Site "Borgarnes"]
[Date "2019.02.15"]
[Round "1.14"]
[White "Gudmundsson, Gunnar Erik"]
[Black "Falkevall, Axel"]
[Result "0-1"]
[ECO "E33"]
[WhiteElo "1693"]
[BlackElo "2070"]
[Annotator "NA RC"]
[PlyCount "58"]
[EventDate "2019.02.03"]
[EventType "swiss"]
[EventCountry "ISL"]
[SourceTitle "playchess.com"]
[Source "ChessBase"]
[SourceQuality "1"]
[TimeControl "40/5400+30:1800+30"]

1. d4 {[%emt 0:00:00]} Nf6 {[%emt 0:05:12]} 2. c4 {[%emt 0:00:03]} e6 {[%emt 0:00:30]} 3. Nc3 {[%emt 0:00:30]} Bb4 {[%emt 0:00:30]} 4. Qc2 {[%emt 0:00:30]} Nc6 {[%emt 0:00:30]} 5. Nf3 {[%emt 0:00:30]} d6 {[%emt 0:00:30]} 6. Bg5 {[%emt 0:00:30]} O-O {[%emt 0:00:30]} 7. e3 {[%emt 0:00:30]} h6 {[%emt 0:00:30]} 8. Bh4 {[%emt 0:00:30]} e5 {[%emt 0:00:30]} 9. Be2 {[%emt 0:00:30]} exd4 {[%emt 0:00:30]} 10. exd4 {[%emt 0:00:30]} Bg4 {[%emt 0:00:30]} 11. Rd1 Bxf3 {[%emt 0:11:49]} 12. Bxf3 {[%emt 0:24:34]} Re8+ {[%emt 0:01:46]} 13. Be2 {[%emt 0:12:28]} Qe7 {[%emt 0:01:12]} 14. a3 {[%emt 0:00:30]} Bxc3+ {[%emt 0:01:48]} 15. bxc3 {[%emt 0:01:03]} g5 {[%emt 0:00:30]} 16. Bg3 {[%emt 0:04:11]} Ne4 {[%emt 0:07:28]} 17. Rd3 f5 {[%emt 0:04:08]} 18. h4 {[%emt 0:12:32]} f4 {[%emt 0:00:30]} 19. Bh2 {[%emt 0:03:07]} Nxc3 {[%emt 0:06:42]} 20. Rxc3 {[%emt 0:18:47]} Nxd4 {[%emt 0:00:34]} 21. Qg6+ Qg7 {[%emt 0:00:06]} 22. Qxg7+ {[%emt 0:00:59]} Kxg7 23. Kd2 {[%emt 0:00:34]} Rxe2+ {[%emt 0:00:55]} 24. Kd1 {[%emt 0:01:31]} c5 {[%emt 0:00:43]} 25. hxg5 {[%emt 0:02:26]} hxg5 {[%emt 0:00:30]} 26. Re1 {[%emt 0:00:34]} Rae8 {[%emt 0:01:21]} 27. Rxe2 Rxe2 {[%emt 0:00:30]} 28. Bg1 {[%emt 0:01:29]} Ra2 {[%emt 0:00:30]} 29. Bh2 {[%emt 0:04:24]} Rxf2 0-1

[Event "Nordic Youth-ch A 2019"]
[Site "Borgarnes"]
[Date "2019.02.15"]
[Round "1.15"]
[White "Shehzad, Shazil"]
[Black "Iskos, Lukas"]
[Result "1/2-1/2"]
[ECO "C46"]
[WhiteElo "1959"]
[BlackElo "1678"]
[Annotator "NA RC"]
[PlyCount "80"]
[EventDate "2019.02.03"]
[EventType "swiss"]
[EventCountry "ISL"]
[SourceTitle "playchess.com"]
[Source "ChessBase"]
[SourceQuality "1"]
[TimeControl "40/5400+30:1800+30"]

1. e4 {[%emt 0:00:04]} Nc6 {[%emt 0:00:25]} 2. Nf3 {[%emt 0:00:00]} e5 {[%emt 0:00:37]} 3. Nc3 {[%emt 0:00:00]} Bc5 {[%emt 0:01:26]} 4. Nxe5 {[%emt 0:00:27]} Nxe5 {[%emt 0:00:25]} 5. d4 {[%emt 0:00:04]} Bd6 {[%emt 0:00:40]} 6. dxe5 {[%emt 0:00:06]} Bxe5 {[%emt 0:00:43]} 7. Bc4 {[%emt 0:00:39]} Nf6 {[%emt 0:01:27] C46: 3 Nc3: Unusual Black 3rd moves} (7... Bxc3+ 8. bxc3 d6 9. O-O Ne7 10. Qh5 O-O 11. Bg5 Qe8 12. Rfe1 Nc6 13. Re3 Kh8 14. Rae1 f6 15. Qxe8 Rxe8 {0-1 (53) Friedrich,N (2324)-Maiorov,N (2531) Vaujany 2014}) 8. O-O {[%emt 0:02:30]} O-O {[%emt 0:00:43]} 9. Qd3 {[%emt 0:02:28]} h6 {[%emt 0:09:03]} 10. f4 {[%emt 0:07:08]} Bxc3 {[%emt 0:01:08]} 11. bxc3 {[%emt 0:00:20]} d6 {[%emt 0:13:31]} 12. Ba3 $146 {[%emt 0:00:58]} ({Predecessor:} 12. e5 Ne8 13. Ba3 Be6 14. Rad1 Bxc4 15. Qxc4 {1-0 (25) Mencos,C (1912)-Emhemed,I (1493) Khanty-Mansiysk 2010}) 12... Re8 {[%emt 0:06:07]} 13. e5 {[%emt 0:01:01]} d5 {[%emt 0:02:25]} 14. Rad1 {[%emt 0:03:01]} c6 {[%emt 0:06:23]} 15. Bb3 {[%emt 0:05:42]} Ne4 {[%emt 0:05:40]} 16. Qf3 {[%emt 0:04:50]} a5 {[%emt 0:05:36]} 17. Bc4 {[%emt 0:14:06]} Qb6+ {[%emt 0:05:51]} 18. Kh1 {[%emt 0:00:14]} h5 {[%emt 0:05:55]} 19. Rd4 {[%emt 0:03:12]} Bg4 {[%emt 0:03:24]} 20. Qe3 {[%emt 0:02:23]} Nxc3 {[%emt 0:08:25]} 21. Qxc3 {[%emt 0:01:18]} dxc4 {[%emt 0:00:04]} 22. Qxc4 {[%emt 0:00:35]} Be2 {[%emt 0:00:16]} 23. Qxe2 {[%emt 0:01:34]} Qxd4 {[%emt 0:00:06]} 24. Qxh5 {[%emt 0:01:15]} Qc4 {[%emt 0:02:04]} 25. Qf3 {[%emt 0:02:01]} Qxc2 {[%emt 0:00:54]} 26. Bd6 {[%emt 0:01:09]} Qxa2 {[%emt 0:01:16]} 27. f5 {[%emt 0:02:59]} a4 {[%emt 0:03:44]} 28. f6 {[%emt 0:01:50]} g6 {[%emt 0:00:08]} 29. Qf4 {[%emt 0:01:37]} Qe2 {[%emt 0:00:42]} 30. Kg1 {[%emt 0:14:30]} Qh5 {[%emt 0:00:35]} 31. g4 {[%emt 0:03:07]} Qh4 $19 {[%emt 0:02:11]} 32. Rf3 {[%emt 0:03:18]} b6 {[%emt 0:04:25]} 33. Kg2 {[%emt 0:02:02]} g5 {[%emt 0:00:55]} 34. Qf5 {[%emt 0:01:33]} Qh6 {[%emt 0:00:12]} 35. Rh3 {[%emt 0:00:12]} Qg6 {[%emt 0:00:06]} 36. Rh5 {[%emt 0:00:52]} Qxf5 37. gxf5 {[%emt 0:00:05]} a3 {[%emt 0:01:25]} 38. Rxg5+ {[%emt 0:00:06]} Kh8 {[%emt 0:00:05]} 39. Rh5+ {[%emt 0:00:32]} Kg8 {[%emt 0:00:05]} 40. Rg5+ {[%emt 0:00:15]} Kh8 {[%emt 0:00:06]} 1/2-1/2

[Event "Nordic Youth-ch A 2019"]
[Site "Borgarnes"]
[Date "2019.02.15"]
[Round "1.16"]
[White "Sinitsyn, Anton"]
[Black "Dale, Gunnar Brandshaug"]
[Result "0-1"]
[ECO "A16"]
[WhiteElo "1621"]
[BlackElo "1889"]
[Annotator "NA RC"]
[PlyCount "104"]
[EventDate "2019.02.03"]
[EventType "swiss"]
[EventCountry "ISL"]
[SourceTitle "playchess.com"]
[Source "ChessBase"]
[SourceQuality "1"]
[TimeControl "40/5400+30:1800+30"]

1. c4 {[%emt 0:00:00]} Nf6 {[%emt 0:00:00]} 2. Nc3 {[%emt 0:00:00]} g6 {[%emt 0:00:20]} 3. g3 {[%emt 0:00:55]} Bg7 {[%emt 0:00:07]} 4. Bg2 {[%emt 0:00:07]} O-O {[%emt 0:00:14]} 5. d4 {[%emt 0:00:21]} d6 {[%emt 0:00:23]} 6. e3 {[%emt 0:01:42]} e5 {[%emt 0:01:09]} 7. Nge2 {[%emt 0:00:19]} c6 {[%emt 0:01:25]} 8. O-O {[%emt 0:00:19]} Nbd7 {[%emt 0:00:47]} 9. b3 {[%emt 0:01:59]} Re8 {[%emt 0:01:34]} 10. d5 {[%emt 0:03:28]} c5 {[%emt 0:02:45]} 11. Bb2 {[%emt 0:00:45]} h5 {[%emt 0:07:23]} 12. h4 {[%emt 0:01:22]} Qe7 {[%emt 0:01:53]} 13. e4 {[%emt 0:00:12]} Ng4 {[%emt 0:01:33]} 14. Nb5 {[%emt 0:03:10]} Rf8 {[%emt 0:01:47]} 15. Bc1 {[%emt 0:03:44]} a6 {[%emt 0:02:29]} 16. Nbc3 {[%emt 0:00:47]} Kh7 {[%emt 0:03:09]} 17. f3 {[%emt 0:03:10]} Nh6 {[%emt 0:01:11]} 18. Qd3 {[%emt 0:01:54]} f5 {[%emt 0:06:48]} 19. Bg5 {[%emt 0:01:24]} Nf6 {[%emt 0:02:07]} 20. f4 {[%emt 0:03:08]} Nf7 {[%emt 0:01:42]} 21. Bxf6 {[%emt 0:02:47]} Bxf6 {[%emt 0:04:17]} 22. Rae1 {[%emt 0:00:50]} exf4 {[%emt 0:06:33]} 23. Nxf4 {[%emt 0:04:33]} Bd4+ {[%emt 0:01:02]} 24. Kh2 {[%emt 0:02:24]} Ne5 {[%emt 0:00:45]} 25. Qd2 {[%emt 0:05:52]} Qg7 {[%emt 0:03:18]} 26. Nce2 {[%emt 0:10:29]} Ng4+ {[%emt 0:02:02]} 27. Kh1 {[%emt 0:01:10]} Nf2+ {[%emt 0:03:38]} 28. Kh2 {[%emt 0:01:19]} Ng4+ {[%emt 0:00:27]} 29. Kh1 {[%emt 0:00:08]} Bf2 {[%emt 0:00:15]} 30. Rb1 {[%emt 0:02:23]} Be3 {[%emt 0:01:44]} 31. Qc3 {[%emt 0:05:17]} Nf2+ {[%emt 0:00:43]} 32. Kh2 {[%emt 0:00:51]} Ng4+ {[%emt 0:03:47]} 33. Kh1 {[%emt 0:00:06]} fxe4 {[%emt 0:00:54]} 34. Qxg7+ {[%emt 0:02:54]} Kxg7 {[%emt 0:00:06]} 35. Nc3 {[%emt 0:03:41]} Bf5 {[%emt 0:02:35]} 36. Ne6+ {[%emt 0:01:20]} Bxe6 {[%emt 0:00:35]} 37. dxe6 {[%emt 0:00:10]} Nf2+ {[%emt 0:02:18]} 38. Kh2 {[%emt 0:00:22]} Rae8 {[%emt 0:01:32]} 39. Nxe4 {[%emt 0:00:32]} Ng4+ {[%emt 0:00:16]} 40. Kh1 {[%emt 0:01:38]} Rxe6 {[%emt 0:00:52]} 41. Rxf8 {[%emt 0:30:49]} Kxf8 {[%emt 0:30:04]} 42. Re1 {[%emt 0:02:51]} Bd4 {[%emt 0:05:53]} 43. Bf3 {[%emt 0:06:38]} Ne3 {[%emt 0:04:17]} 44. Ng5 {[%emt 0:01:30]} Re7 {[%emt 0:00:36]} 45. Bd5 {[%emt 0:00:51]} Nxd5 {[%emt 0:00:33]} 46. Ne6+ {[%emt 0:01:25]} Rxe6 {[%emt 0:00:53]} 47. Rxe6 {[%emt 0:00:08]} Ne7 {[%emt 0:07:03]} 48. Rxd6 {[%emt 0:01:18]} Be5 {[%emt 0:00:25]} 49. Rd8+ {[%emt 0:01:04]} Kf7 {[%emt 0:00:15]} 50. Rd3 {[%emt 0:00:10]} Ke6 {[%emt 0:00:17]} 51. Kg2 {[%emt 0:00:33]} Nf5 {[%emt 0:00:36]} 52. Rd5 {[%emt 0:01:54]} Ne3+ {[%emt 0:00:24]} 0-1

[Event "Nordic Youth-ch A 2019"]
[Site "Borgarnes"]
[Date "2019.02.15"]
[Round "1.17"]
[White "Sakic, Matija"]
[Black "Kvaloy, Aksel Bu"]
[Result "0-1"]
[ECO "A00"]
[WhiteElo "1421"]
[BlackElo "2066"]
[Annotator "NA RC"]
[PlyCount "42"]
[EventDate "2019.02.03"]
[EventType "swiss"]
[EventCountry "ISL"]
[SourceTitle "playchess.com"]
[Source "ChessBase"]
[SourceQuality "1"]
[TimeControl "40/5400+30:1800+30"]

1. g3 {[%emt 0:00:00]} e5 {[%emt 0:00:02]} 2. Bg2 {[%emt 0:00:19]} d5 {[%emt 0:00:31]} 3. d3 {[%emt 0:00:39]} Nc6 {[%emt 0:01:24]} 4. Nf3 {[%emt 0:01:13]} Nge7 {[%emt 0:00:59]} 5. O-O {[%emt 0:02:28]} g6 {[%emt 0:00:26]} 6. c4 {[%emt 0:12:50]} Bg7 {[%emt 0:04:43]} 7. Nc3 {[%emt 0:04:38]} d4 {[%emt 0:02:40]} 8. Ne4 {[%emt 0:06:17]} O-O {[%emt 0:02:23]} 9. Ne1 {[%emt 0:06:07]} f5 {[%emt 0:09:11]} 10. Nd2 {[%emt 0:04:11]} Kh8 {[%emt 0:01:24]} 11. Nc2 {[%emt 0:01:27]} a5 {[%emt 0:01:02]} 12. Rb1 {[%emt 0:05:31]} Nb4 {[%emt 0:18:33]} 13. a3 {[%emt 0:01:09]} Nxc2 {[%emt 0:00:25]} 14. Qxc2 {[%emt 0:00:18]} a4 {[%emt 0:04:53]} 15. b4 {[%emt 0:04:37]} axb3 {[%emt 0:01:39]} 16. Nxb3 {[%emt 0:01:19]} Qd6 {[%emt 0:02:31]} 17. Bd2 {[%emt 0:06:00]} c5 {[%emt 0:08:53]} 18. Na5 {[%emt 0:02:33]} Qc7 {[%emt 0:01:09]} 19. Nxb7 {[%emt 0:03:13]} Ra7 {[%emt 0:01:44]} 20. Qb3 {[%emt 0:01:51]} Bxb7 {[%emt 0:01:00]} 21. Bxb7 {[%emt 0:01:03]} Rb8 {[%emt 0:00:47]} 0-1